[Event "84th ESP-ch 2019"]
[Site "Marbella"]
[Date "2019.11.22"]
[Round "7.10"]
[White "Del Rio De Angelis, Salvador G."]
[Black "Alvarez Fernandez, Enrique"]
[Result "1-0"]
[ECO "D19"]
[WhiteElo "2502"]
[BlackElo "2349"]
[Annotator "ChessBase"]
[PlyCount "93"]
[EventDate "2019.11.16"]
[EventType "swiss"]
[EventCountry "ESP"]
[SourceTitle "playchess.com"]
[Source "ChessBase"]
[SourceQuality "1"]
[TimeControl "5400+30"]

1. d4 {[%emt 0:00:00]} d5 {[%emt 0:01:02]} 2. c4 {[%emt 0:00:28]} c6 {[%emt 0:00:20]} 3. Nf3 {[%emt 0:00:13]} Nf6 {[%emt 0:00:22]} 4. Nc3 {[%emt 0:00:16]} dxc4 {[%emt 0:00:23]} 5. a4 {[%emt 0:00:34]} Bf5 {[%emt 0:00:19]} 6. e3 {[%emt 0:00:43]} e6 {[%emt 0:00:28]} 7. Bxc4 {[%emt 0:00:36]} Bb4 {[%emt 0:00:18]} 8. O-O {[%emt 0:00:14]} O-O {[%emt 0:00:24]} 9. Qe2 {[%emt 0:00:12]} Nbd7 {[%emt 0:01:01]} 10. Nh4 {[%emt 0:00:21]} Nb6 {[%emt 0:13:11]} 11. Bb3 {[%emt 0:02:46]} a5 {[%emt 0:01:27]} 12. f3 {[%emt 0:05:26]} Nfd5 {[%emt 0:18:23]} 13. Nxf5 {[%emt 0:07:47]} exf5 {[%emt 0:01:18]} 14. Qd3 {[%emt 0:00:15]} Ne7 {[%emt 0:11:51]} 15. Na2 {[%emt 0:13:38]} Bd6 {[%emt 0:03:16]} 16. Bd2 {[%emt 0:00:08]} Qc7 {[%emt 0:18:14]} 17. Kh1 {[%emt 0:01:17]} Qd7 {[%emt 0:01:21]} 18. Rac1 {[%emt 0:06:52]} Bc7 {[%emt 0:01:25]} 19. Nc3 {[%emt 0:01:33]} Nbd5 {[%emt 0:02:39]} 20. Ne2 {[%emt 0:05:40]} Qd6 {[%emt 0:02:18]} 21. g3 {[%emt 0:00:20]} Nb4 {[%emt 0:01:45]} 22. Qc4 {[%emt 0:01:37]} Qh6 {[%emt 0:05:49]} 23. Rcd1 {[%emt 0:03:21]} Qh5 {[%emt 0:06:12]} 24. Kg2 {[%emt 0:07:00]} Nbd5 {[%emt 0:00:52]} 25. e4 {[%emt 0:02:50]} Nf6 {[%emt 0:01:11]} 26. Qd3 {[%emt 0:05:26]} Rad8 {[%emt 0:03:06]} 27. Nf4 {[%emt 0:04:05]} Bxf4 {[%emt 0:00:08]} 28. Bxf4 {[%emt 0:00:06]} Ng6 {[%emt 0:00:57]} 29. Bc1 {[%emt 0:02:05]} fxe4 {[%emt 0:01:25]} 30. fxe4 {[%emt 0:00:08]} Rfe8 {[%emt 0:00:37]} 31. h3 {[%emt 0:05:25]} Rxe4 {[%emt 0:02:31]} 32. Rxf6 {[%emt 0:07:51]} Rexd4 {[%emt 0:00:20]} 33. Bxf7+ {[%emt 0:00:53]} Kh8 {[%emt 0:00:13]} 34. Bxg6 {[%emt 0:00:12]} Rxd3 {[%emt 0:01:19]} 35. Rxd3 {[%emt 0:02:26]} Qe2+ {[%emt 0:00:20]} 36. Rf2 {[%emt 0:00:07]} Qe7 {[%emt 0:00:23]} 37. Rxd8+ {[%emt 0:00:29]} Qxd8 {[%emt 0:00:04]} 38. Bc2 {[%emt 0:00:39]} Qd5+ {[%emt 0:00:24]} 39. Kh2 {[%emt 0:00:23]} Kg8 {[%emt 0:00:46]} 40. Bd2 {[%emt 0:01:17]} h6 {[%emt 0:00:40]} 41. Bc3 {[%emt 0:00:23]} b5 {[%emt 0:00:20]} 42. axb5 {[%emt 0:00:53]} cxb5 {[%emt 0:00:18]} 43. Rd2 {[%emt 0:00:15]} Qa8 {[%emt 0:00:54]} 44. Rd7 {[%emt 0:00:53]} b4 {[%emt 0:00:31]} 45. Bb3+ {[%emt 0:00:08]} Kf8 {[%emt 0:00:11]} 46. Bxg7+ {[%emt 0:00:17]} Ke8 {[%emt 0:00:06]} 47. Ba4 {[%emt 0:00:06]} 1-0

[Event "84th ESP-ch 2019"]
[Site "Marbella"]
[Date "2019.11.22"]
[Round "7.11"]
[White "Serarols Mabras, Bernat"]
[Black "Asis Gargatagli, Hipolito"]
[Result "0-1"]
[ECO "A56"]
[WhiteElo "2367"]
[BlackElo "2497"]
[Annotator "ChessBase"]
[PlyCount "60"]
[EventDate "2019.11.16"]
[EventType "swiss"]
[EventCountry "ESP"]
[SourceTitle "playchess.com"]
[Source "ChessBase"]
[SourceQuality "1"]
[TimeControl "5400+30"]

1. d4 {[%emt 0:00:00]} Nf6 {[%emt 0:00:00]} 2. c4 {[%emt 0:00:00]} c5 {[%emt 0:00:37]} 3. d5 {[%emt 0:00:00]} g6 {[%emt 0:00:07]} 4. Nc3 {[%emt 0:00:00]} Bg7 {[%emt 0:00:04]} 5. e4 {[%emt 0:00:04]} d6 {[%emt 0:00:04]} 6. Bd3 {[%emt 0:00:07]} O-O {[%emt 0:00:05]} 7. h3 {[%emt 0:00:06]} e6 {[%emt 0:00:04]} 8. Nf3 {[%emt 0:00:06]} Nbd7 {[%emt 0:00:04]} 9. O-O {[%emt 0:00:15]} e5 {[%emt 0:00:04]} 10. Bd2 {[%emt 0:10:57]} Nh5 {[%emt 0:14:01]} 11. g3 {[%emt 0:04:25]} Ndf6 {[%emt 0:26:50]} 12. Kg2 {[%emt 0:04:09]} h6 {[%emt 0:12:05]} 13. Be2 {[%emt 0:07:14]} Nh7 {[%emt 0:07:12]} 14. Qc1 {[%emt 0:11:20]} f5 {[%emt 0:02:49]} 15. exf5 {[%emt 0:18:46]} gxf5 {[%emt 0:02:09]} 16. Nh4 {[%emt 0:02:09]} N5f6 {[%emt 0:11:36]} 17. Bxh6 {[%emt 0:04:07]} f4 {[%emt 0:00:40]} 18. Bxg7 {[%emt 0:03:28]} Kxg7 {[%emt 0:00:04]} 19. Bd3 {[%emt 0:09:06]} Ng5 {[%emt 0:05:00]} 20. Nf5+ {[%emt 0:07:50]} Bxf5 {[%emt 0:01:44]} 21. Bxf5 {[%emt 0:00:08]} Nxd5 {[%emt 0:03:32]} 22. Nxd5 {[%emt 0:02:44]} Rxf5 {[%emt 0:00:12]} 23. gxf4 {[%emt 0:01:40]} Ne6 {[%emt 0:03:28]} 24. fxe5 {[%emt 0:01:34]} Qh4 {[%emt 0:00:40]} 25. f4 {[%emt 0:06:20]} Rg8 {[%emt 0:02:09]} 26. Qe3 {[%emt 0:00:43]} dxe5 {[%emt 0:02:20]} 27. Kh2 {[%emt 0:02:48]} exf4 {[%emt 0:01:19]} 28. Rg1+ {[%emt 0:00:41]} Kf7 {[%emt 0:00:04]} 29. Qe4 {[%emt 0:02:21]} Qxh3+ {[%emt 0:00:08]} 30. Kxh3 {[%emt 0:00:08]} Rh5# 0-1

[Event "84th ESP-ch 2019"]
[Site "Marbella"]
[Date "2019.11.22"]
[Round "7.12"]
[White "Berrocal Ruiz, Valentin"]
[Black "Espinosa Aranda, Angel"]
[Result "1/2-1/2"]
[ECO "D03"]
[WhiteElo "2143"]
[BlackElo "2511"]
[Annotator "ChessBase"]
[PlyCount "67"]
[EventDate "2019.11.16"]
[EventType "swiss"]
[EventCountry "ESP"]
[SourceTitle "playchess.com"]
[Source "ChessBase"]
[SourceQuality "1"]
[TimeControl "5400+30"]

1. d4 {[%emt 0:00:00]} d5 {[%emt 0:00:00]} 2. Nf3 {[%emt 0:00:00]} Nf6 {[%emt 0:00:18]} 3. Bg5 {[%emt 0:00:00]} Ne4 {[%emt 0:00:12]} 4. Bf4 {[%emt 0:01:04]} g6 {[%emt 0:07:49]} 5. e3 {[%emt 0:01:20]} Bg7 {[%emt 0:00:07]} 6. Nbd2 {[%emt 0:00:15]} c5 {[%emt 0:03:50]} 7. c3 {[%emt 0:00:31]} Nc6 {[%emt 0:01:42]} 8. Nxe4 {[%emt 0:09:05]} dxe4 {[%emt 0:00:05]} 9. Ng5 {[%emt 0:00:05]} cxd4 {[%emt 0:11:58]} 10. exd4 {[%emt 0:01:13]} Bf5 {[%emt 0:00:34]} 11. g4 {[%emt 0:04:18]} e5 {[%emt 0:07:36]} 12. Bc4 {[%emt 0:20:51]} O-O {[%emt 0:12:32]} 13. gxf5 {[%emt 0:10:14]} exf4 {[%emt 0:00:03]} 14. Nxf7 {[%emt 0:00:24]} Rxf7 {[%emt 0:00:07]} 15. Bxf7+ {[%emt 0:00:13]} Kxf7 {[%emt 0:00:02]} 16. Qb3+ {[%emt 0:00:08]} Kf8 {[%emt 0:00:20]} 17. fxg6 {[%emt 0:00:07]} hxg6 {[%emt 0:00:20]} 18. Qxb7 {[%emt 0:00:09]} Qe8 {[%emt 0:03:27]} 19. O-O-O {[%emt 0:03:03]} e3 {[%emt 0:05:00]} 20. fxe3 {[%emt 0:14:03]} Rb8 {[%emt 0:00:16]} 21. Qc7 {[%emt 0:00:35]} Qxe3+ {[%emt 0:00:04]} 22. Kb1 {[%emt 0:00:41]} Qf2 {[%emt 0:08:40]} 23. b3 {[%emt 0:01:50]} Qf3 {[%emt 0:00:25]} 24. Rhf1 {[%emt 0:03:10]} Qe4+ {[%emt 0:00:13]} 25. Ka1 {[%emt 0:00:22]} g5 {[%emt 0:06:41]} 26. h4 {[%emt 0:00:06]} Kg8 {[%emt 0:01:31]} 27. hxg5 {[%emt 0:00:46]} Rf8 {[%emt 0:02:10]} 28. Rde1 {[%emt 0:02:29]} Qg2 {[%emt 0:00:10]} 29. Rxf4 {[%emt 0:01:19]} Qd2 {[%emt 0:00:27]} 30. Rxf8+ {[%emt 0:08:22]} Bxf8 {[%emt 0:00:04]} 31. Qg3 {[%emt 0:02:25]} Ba3 {[%emt 0:01:06]} 32. Re8+ {[%emt 0:00:24]} Kf7 {[%emt 0:00:23]} 33. Qf3+ {[%emt 0:00:23]} Kxe8 {[%emt 0:00:05]} 34. Qxc6+ {[%emt 0:00:07]} 1/2-1/2

[Event "84th ESP-ch 2019"]
[Site "Marbella"]
[Date "2019.11.22"]
[Round "7.13"]
[White "Larino Nieto, David"]
[Black "Perez Garcia, Alejandro"]
[Result "1-0"]
[ECO "B18"]
[WhiteElo "2473"]
[BlackElo "2343"]
[Annotator "ChessBase"]
[PlyCount "95"]
[EventDate "2019.11.16"]
[EventType "swiss"]
[EventCountry "ESP"]
[SourceTitle "playchess.com"]
[Source "ChessBase"]
[SourceQuality "1"]
[TimeControl "5400+30"]

1. e4 {[%emt 0:10:57]} c6 {[%emt 0:00:00]} 2. d4 {[%emt 0:01:05]} d5 {[%emt 0:00:12]} 3. Nd2 {[%emt 0:00:56]} dxe4 {[%emt 0:00:12]} 4. Nxe4 {[%emt 0:00:02]} Bf5 {[%emt 0:00:14]} 5. Ng3 {[%emt 0:00:04]} Bg6 {[%emt 0:00:05]} 6. Bc4 {[%emt 0:00:04]} e6 {[%emt 0:02:43]} 7. N1e2 {[%emt 0:00:48]} Bd6 {[%emt 0:02:17]} 8. O-O {[%emt 0:00:25]} Nf6 {[%emt 0:03:27]} 9. f4 {[%emt 0:00:38]} Qc7 {[%emt 0:10:38]} 10. f5 {[%emt 0:02:47]} exf5 {[%emt 0:04:05]} 11. Nxf5 {[%emt 0:00:24]} Bxh2+ {[%emt 0:01:44]} 12. Kh1 {[%emt 0:00:04]} O-O {[%emt 0:02:37]} 13. g3 {[%emt 0:00:41]} Ng4 {[%emt 0:09:52]} 14. Bd3 {[%emt 0:12:14]} Nd7 {[%emt 0:11:36]} 15. Ne7+ {[%emt 0:26:06]} Kh8 {[%emt 0:00:06]} 16. Nxg6+ {[%emt 0:00:03]} fxg6 {[%emt 0:05:13]} 17. Nf4 {[%emt 0:04:03]} Ndf6 {[%emt 0:06:36]} 18. Qf3 {[%emt 0:00:33]} Qf7 {[%emt 0:17:07]} 19. Kg2 {[%emt 0:05:49]} Rae8 {[%emt 0:07:30]} 20. Bd2 {[%emt 0:01:29]} g5 {[%emt 0:01:41]} 21. Nh3 {[%emt 0:00:49]} Ne3+ {[%emt 0:02:43]} 22. Bxe3 {[%emt 0:03:48]} g4 {[%emt 0:00:20]} 23. Qf5 {[%emt 0:08:11]} gxh3+ {[%emt 0:00:23]} 24. Kxh2 {[%emt 0:00:27]} Rxe3 {[%emt 0:00:27]} 25. Qxh3 {[%emt 0:00:14]} h5 {[%emt 0:05:58]} 26. Kg1 {[%emt 0:04:30]} Qd5 {[%emt 0:02:29]} 27. Rf4 {[%emt 0:05:13]} g5 {[%emt 0:02:23]} 28. Rf5 {[%emt 0:00:59]} Qxd4 {[%emt 0:00:32]} 29. Kh1 {[%emt 0:00:23]} Rfe8 {[%emt 0:00:43]} 30. Raf1 {[%emt 0:00:26]} h4 {[%emt 0:00:35]} 31. Rxf6 {[%emt 0:01:29]} Rxg3 {[%emt 0:00:29]} 32. Qf5 {[%emt 0:01:36]} Qd5+ {[%emt 0:00:29]} 33. Qxd5 {[%emt 0:00:06]} cxd5 {[%emt 0:00:15]} 34. Rh6+ {[%emt 0:00:07]} Kg7 {[%emt 0:00:46]} 35. Rg6+ {[%emt 0:00:16]} Kh8 {[%emt 0:00:07]} 36. Kh2 {[%emt 0:00:14]} Ree3 {[%emt 0:00:51]} 37. Rf8+ {[%emt 0:03:58]} Kh7 {[%emt 0:00:04]} 38. Rf7+ {[%emt 0:00:10]} Kh8 {[%emt 0:00:05]} 39. Rd6 {[%emt 0:02:13]} Rh3+ {[%emt 0:00:53]} 40. Kg2 {[%emt 0:01:00]} Reg3+ {[%emt 0:00:21]} 41. Kf2 {[%emt 0:00:23]} Rh2+ {[%emt 0:00:10]} 42. Ke1 {[%emt 0:00:42]} Re3+ {[%emt 0:01:29]} 43. Kd1 {[%emt 0:00:44]} Kg8 {[%emt 0:00:27]} 44. Rxb7 {[%emt 0:00:24]} Re8 {[%emt 0:00:33]} 45. Rg6+ {[%emt 0:00:30]} Kf8 {[%emt 0:00:10]} 46. Rxg5 {[%emt 0:00:31]} d4 {[%emt 0:00:49]} 47. Rf5+ {[%emt 0:00:07]} Kg8 {[%emt 0:00:05]} 48. Bc4+ {[%emt 0:00:04]} 1-0

[Event "84th ESP-ch 2019"]
[Site "Marbella"]
[Date "2019.11.22"]
[Round "7.14"]
[White "Tejedor Fuente, Enrique"]
[Black "Guerra Rivera, Salvador"]
[Result "1-0"]
[ECO "C03"]
[WhiteElo "2457"]
[BlackElo "2334"]
[Annotator "ChessBase"]
[PlyCount "75"]
[EventDate "2019.11.16"]
[EventType "swiss"]
[EventCountry "ESP"]
[SourceTitle "playchess.com"]
[Source "ChessBase"]
[SourceQuality "1"]
[TimeControl "5400+30"]

1. e4 {[%emt 0:02:55]} e6 {[%emt 0:00:01]} 2. d4 {[%emt 0:00:02]} d5 {[%emt 0:00:07]} 3. Nd2 {[%emt 0:00:32]} Be7 {[%emt 0:00:28]} 4. Ngf3 {[%emt 0:00:45]} Nf6 {[%emt 0:00:25]} 5. e5 {[%emt 0:00:18]} Nfd7 {[%emt 0:00:11]} 6. c4 {[%emt 0:00:46]} dxc4 {[%emt 0:05:56]} 7. Nxc4 {[%emt 0:00:38]} Nb6 {[%emt 0:00:21]} 8. a3 {[%emt 0:00:05]} N8d7 {[%emt 0:10:38]} 9. Ne3 {[%emt 0:11:14]} Nf8 {[%emt 0:01:15]} 10. Bd3 {[%emt 0:00:39]} Nd5 {[%emt 0:12:27]} 11. O-O {[%emt 0:00:32]} Bd7 {[%emt 0:03:03]} 12. Nxd5 {[%emt 0:24:20]} exd5 {[%emt 0:00:06]} 13. Qb3 {[%emt 0:00:20]} Bc8 {[%emt 0:01:22]} 14. Be3 {[%emt 0:02:30]} Ne6 {[%emt 0:01:09]} 15. Qc2 {[%emt 0:04:30]} g6 {[%emt 0:10:43]} 16. Bh6 {[%emt 0:00:27]} Bf8 {[%emt 0:02:17]} 17. Qd2 {[%emt 0:00:00]} Qe7 {[%emt 0:13:29]} 18. Bxf8 {[%emt 0:05:03]} Kxf8 {[%emt 0:01:38]} 19. Qh6+ {[%emt 0:00:02]} Kg8 {[%emt 0:00:13]} 20. Rac1 {[%emt 0:01:20]} a5 {[%emt 0:04:09]} 21. g3 {[%emt 0:00:41]} c6 {[%emt 0:02:33]} 22. Qe3 {[%emt 0:01:05]} Ng7 {[%emt 0:02:32]} 23. Nh4 {[%emt 0:01:55]} Bh3 {[%emt 0:04:52]} 24. Rfe1 {[%emt 0:01:49]} Qe6 {[%emt 0:10:06]} 25. Rc3 {[%emt 0:03:14]} Re8 {[%emt 0:01:18]} 26. Rb3 {[%emt 0:00:21]} c5 {[%emt 0:03:46]} 27. Bb5 {[%emt 0:03:22]} Rc8 {[%emt 0:05:38]} 28. dxc5 {[%emt 0:17:55]} d4 {[%emt 0:00:05]} 29. Qd3 {[%emt 0:00:11]} Nf5 {[%emt 0:00:22]} 30. Bc4 {[%emt 0:01:28]} Qc6 {[%emt 0:00:07]} 31. Nf3 {[%emt 0:00:01]} Kg7 {[%emt 0:02:06]} 32. Rb5 {[%emt 0:02:52]} h5 {[%emt 0:00:59]} 33. Re4 {[%emt 0:00:54]} h4 {[%emt 0:00:46]} 34. g4 {[%emt 0:00:12]} Rhe8 {[%emt 0:01:00]} 35. e6 {[%emt 0:03:56]} f6 {[%emt 0:00:41]} 36. Rf4 {[%emt 0:06:23]} Nh6 {[%emt 0:00:26]} 37. Nxh4 {[%emt 0:00:21]} g5 {[%emt 0:00:33]} 38. Qg6+ {[%emt 0:00:08]} 1-0

[Event "84th ESP-ch 2019"]
[Site "Marbella"]
[Date "2019.11.22"]
[Round "7.15"]
[White "Calzetta Ruiz, Monica"]
[Black "Bernabeu Lopez, Carlos Javier"]
[Result "1-0"]
[ECO "C91"]
[WhiteElo "2251"]
[BlackElo "2366"]
[Annotator "ChessBase"]
[PlyCount "79"]
[EventDate "2019.11.16"]
[EventType "swiss"]
[EventCountry "ESP"]
[SourceTitle "playchess.com"]
[Source "ChessBase"]
[SourceQuality "1"]
[TimeControl "5400+30"]

1. e4 {[%emt 0:00:00]} e5 {[%emt 0:00:00]} 2. Nf3 {[%emt 0:00:03]} Nc6 {[%emt 0:00:00]} 3. Bb5 {[%emt 0:00:07]} a6 {[%emt 0:00:00]} 4. Ba4 {[%emt 0:00:06]} Nf6 {[%emt 0:00:00]} 5. O-O {[%emt 0:07:51]} Be7 {[%emt 0:00:00]} 6. Re1 {[%emt 0:00:18]} b5 {[%emt 0:00:00]} 7. Bb3 {[%emt 0:00:05]} O-O {[%emt 0:00:03]} 8. d4 {[%emt 0:00:16]} d6 {[%emt 0:00:30]} 9. c3 {[%emt 0:00:51]} Bg4 {[%emt 0:00:04]} 10. d5 {[%emt 0:00:08]} Na5 {[%emt 0:00:03]} 11. Bc2 {[%emt 0:00:04]} Qc8 {[%emt 0:00:05]} 12. h3 {[%emt 0:00:10]} Bd7 {[%emt 0:00:03]} 13. Nbd2 {[%emt 0:01:05]} c6 {[%emt 0:00:50]} 14. dxc6 {[%emt 0:02:12]} Qxc6 {[%emt 0:00:05]} 15. Nf1 {[%emt 0:00:08]} h6 {[%emt 0:03:23]} 16. Ng3 {[%emt 0:10:20]} Rfe8 {[%emt 0:05:51]} 17. Nh4 {[%emt 0:04:56]} Bf8 {[%emt 0:02:30]} 18. Nhf5 {[%emt 0:01:32]} Kh7 {[%emt 0:04:56]} 19. Qf3 {[%emt 0:05:21]} Ng8 {[%emt 0:02:39]} 20. Rd1 {[%emt 0:16:33]} Be6 {[%emt 0:02:09]} 21. h4 {[%emt 0:14:50]} g6 {[%emt 0:11:27]} 22. Ne3 {[%emt 0:00:18]} h5 {[%emt 0:10:24]} 23. Nxh5 {[%emt 0:00:35]} gxh5 {[%emt 0:02:45]} 24. Qxh5+ {[%emt 0:00:03]} Kg7 {[%emt 0:02:24]} 25. Rd3 {[%emt 0:12:24]} Qxe4 {[%emt 0:22:27]} 26. Nf5+ {[%emt 0:00:13]} Bxf5 {[%emt 0:03:56]} 27. Rg3+ {[%emt 0:00:08]} Kf6 {[%emt 0:00:01]} 28. Bxe4 {[%emt 0:00:54]} Bxe4 {[%emt 0:00:03]} 29. Rxg8 {[%emt 0:00:55]} Ke6 {[%emt 0:00:29]} 30. Be3 {[%emt 0:04:11]} Nc4 {[%emt 0:01:30]} 31. Re1 {[%emt 0:00:06]} Bf5 {[%emt 0:01:26]} 32. b3 {[%emt 0:01:55]} Nb2 {[%emt 0:01:04]} 33. Rg5 {[%emt 0:02:53]} Be4 {[%emt 0:02:58]} 34. Bc1 {[%emt 0:02:25]} Nd3 {[%emt 0:00:05]} 35. Rxe4 {[%emt 0:00:29]} Nxc1 {[%emt 0:00:02]} 36. Qg4+ {[%emt 0:01:08]} Ke7 {[%emt 0:00:24]} 37. Rf5 {[%emt 0:04:27]} Nxa2 {[%emt 0:03:06]} 38. Qf3 {[%emt 0:00:43]} Rac8 {[%emt 0:00:31]} 39. Rxf7+ {[%emt 0:00:06]} Kd8 {[%emt 0:00:03]} 40. Rxf8 {[%emt 0:01:20]} 1-0

[Event "84th ESP-ch 2019"]
[Site "Marbella"]
[Date "2019.11.22"]
[Round "7.16"]
[White "Perera Borrego, Maria Adela"]
[Black "Garcia Ramos, Daniel"]
[Result "1/2-1/2"]
[ECO "A50"]
[WhiteElo "2201"]
[BlackElo "2350"]
[Annotator "RC"]
[PlyCount "82"]
[EventDate "2019.11.16"]
[EventType "swiss"]
[EventCountry "ESP"]
[SourceTitle "playchess.com"]
[Source "ChessBase"]
[SourceQuality "1"]
[TimeControl "5400+30"]

1. d4 {[%emt 0:00:00]} Nf6 {[%emt 0:00:00]} 2. c4 {[%emt 0:00:00]} b6 {[%emt 0:00:00]} 3. Nc3 {[%emt 0:01:27]} Bb7 {[%emt 0:00:00]} 4. Nf3 {[%emt 0:00:23]} g6 {[%emt 0:00:42]} 5. Qc2 {[%emt 0:00:47]} d5 {[%emt 0:00:33]} 6. cxd5 {[%emt 0:01:25]} Nxd5 {[%emt 0:00:06]} 7. Nxd5 {[%emt 0:01:06]} Bxd5 {[%emt 0:04:57]} 8. e4 {[%emt 0:00:30]} Bb7 {[%emt 0:00:05]} 9. Bf4 {[%emt 0:00:56]} Bg7 {[%emt 0:12:27]} 10. Bxc7 {[%emt 0:06:51]} Qc8 {[%emt 0:00:14]} 11. Bb5+ {[%emt 0:00:35]} Nd7 {[%emt 0:02:24]} 12. O-O {[%emt 0:13:25]} O-O {[%emt 0:02:19]} 13. Rfe1 {[%emt 0:23:32]} a6 {[%emt 0:31:50]} 14. Bxd7 {[%emt 0:08:40]} Qxd7 {[%emt 0:00:10]} 15. Bxb6 {[%emt 0:00:16]} f5 {[%emt 0:01:12]} 16. Qb3+ {[%emt 0:07:28]} Kh8 {[%emt 0:11:34]} 17. Ne5 {[%emt 0:12:39]} Bxe5 {[%emt 0:05:42]} 18. dxe5 {[%emt 0:00:01]} Bxe4 {[%emt 0:01:03]} 19. e6 {[%emt 0:02:41]} Qb5 {[%emt 0:06:55]} 20. Qe3 {[%emt 0:07:59]} Kg8 {[%emt 0:01:25]} 21. Rad1 {[%emt 0:04:51]} f4 {[%emt 0:06:48]} 22. Qxe4 {[%emt 0:01:44]} Qxb6 {[%emt 0:00:01]} 23. Qd4 {[%emt 0:00:58]} Rab8 {[%emt 0:01:20]} 24. Qxb6 {[%emt 0:01:18]} Rxb6 {[%emt 0:00:01]} 25. b3 {[%emt 0:00:29]} Kg7 {[%emt 0:00:30]} 26. Re4 {[%emt 0:01:21]} Rf5 {[%emt 0:01:49]} 27. g4 {[%emt 0:01:16]} fxg3 {[%emt 0:00:11]} 28. hxg3 {[%emt 0:00:09]} Kf6 {[%emt 0:01:06]} 29. Rd8 {[%emt 0:01:01]} Re5 {[%emt 0:05:17]} 30. Rf8+ {[%emt 0:00:30]} Kxe6 {[%emt 0:00:05]} 31. Rxe5+ {[%emt 0:00:01]} Kxe5 {[%emt 0:00:08]} 32. Rf7 {[%emt 0:00:02]} Re6 {[%emt 0:02:35]} 33. Rxh7 {[%emt 0:00:02]} Kd4 {[%emt 0:00:52]} 34. Rh4+ {[%emt 0:00:30]} Kd3 {[%emt 0:00:57]} 35. Rc4 {[%emt 0:01:27]} g5 {[%emt 0:01:03]} 36. Kg2 {[%emt 0:00:09]} Re5 {[%emt 0:00:07]} 37. Ra4 {[%emt 0:00:49]} a5 {[%emt 0:00:26]} 38. f4 {[%emt 0:00:24]} gxf4 {[%emt 0:00:59]} 39. gxf4 {[%emt 0:00:02]} Rc5 {[%emt 0:00:35]} 40. Kf3 {[%emt 0:00:18]} e5 {[%emt 0:00:43]} 41. fxe5 {[%emt 0:01:25]} Rxe5 {[%emt 0:00:01] Ke4+} 1/2-1/2

[Event "84th ESP-ch 2019"]
[Site "Marbella"]
[Date "2019.11.22"]
[Round "7.17"]
[White "Pazos Porta, Antonio"]
[Black "Guillo Longares, Cecilia"]
[Result "1-0"]
[ECO "B36"]
[WhiteElo "2345"]
[BlackElo "2100"]
[Annotator "ChessBase"]
[PlyCount "103"]
[EventDate "2019.11.16"]
[EventType "swiss"]
[EventCountry "ESP"]
[SourceTitle "playchess.com"]
[Source "ChessBase"]
[SourceQuality "1"]
[TimeControl "5400+30"]

1. e4 {[%emt 0:07:02]} c5 {[%emt 0:00:00]} 2. Nf3 {[%emt 0:00:53]} Nc6 {[%emt 0:00:00]} 3. d4 {[%emt 0:01:13]} cxd4 {[%emt 0:00:00]} 4. Nxd4 {[%emt 0:00:05]} g6 {[%emt 0:00:00]} 5. c4 {[%emt 0:04:21]} Nf6 {[%emt 0:00:37]} 6. Nc3 {[%emt 0:01:02]} d6 {[%emt 0:00:22]} 7. Be2 {[%emt 0:03:39]} Nxd4 {[%emt 0:00:08]} 8. Qxd4 {[%emt 0:00:20]} Bg7 {[%emt 0:00:05]} 9. Be3 {[%emt 0:04:16]} O-O {[%emt 0:00:07]} 10. Qd2 {[%emt 0:01:05]} a5 {[%emt 0:00:04]} 11. O-O {[%emt 0:03:13]} a4 {[%emt 0:03:15]} 12. Rab1 {[%emt 0:09:05]} Be6 {[%emt 0:06:09]} 13. f3 {[%emt 0:08:43]} Qa5 {[%emt 0:02:31]} 14. Rfc1 {[%emt 0:23:34]} Rfc8 {[%emt 0:03:23]} 15. b4 {[%emt 0:00:46]} axb3 {[%emt 0:03:09]} 16. axb3 {[%emt 0:00:02]} Qb4 {[%emt 0:05:42]} 17. Qc2 {[%emt 0:00:14]} Nd7 {[%emt 0:02:06]} 18. Nb5 {[%emt 0:01:44]} Qa5 {[%emt 0:02:47]} 19. Nd4 {[%emt 0:03:13]} Qa2 {[%emt 0:01:27]} 20. Qd1 {[%emt 0:02:29]} Qa7 {[%emt 0:01:45]} 21. Nf5 {[%emt 0:02:05]} b6 {[%emt 0:00:41]} 22. Nxe7+ {[%emt 0:01:37]} Kh8 {[%emt 0:00:18]} 23. Nxc8 {[%emt 0:00:12]} Rxc8 {[%emt 0:00:02]} 24. Qxd6 {[%emt 0:00:50]} Be5 {[%emt 0:00:39]} 25. Bd4 {[%emt 0:00:36]} Bxd4+ {[%emt 0:02:07]} 26. Qxd4+ {[%emt 0:00:01]} Kg8 {[%emt 0:00:05]} 27. f4 {[%emt 0:01:53]} Qc7 {[%emt 0:00:24]} 28. e5 {[%emt 0:04:42]} Nc5 {[%emt 0:01:12]} 29. Qd6 {[%emt 0:00:06]} Bf5 {[%emt 0:01:22]} 30. Qxc7 {[%emt 0:00:18]} Rxc7 {[%emt 0:00:02]} 31. Rb2 {[%emt 0:00:20]} Bd3 {[%emt 0:00:38]} 32. Rc3 {[%emt 0:01:34]} Bf5 {[%emt 0:00:33]} 33. Ra2 {[%emt 0:01:28]} Ne4 {[%emt 0:00:31]} 34. Re3 {[%emt 0:00:21]} Nc5 {[%emt 0:00:10]} 35. Ra8+ {[%emt 0:00:51]} Kg7 {[%emt 0:00:02]} 36. Rb8 {[%emt 0:00:16]} Nd7 {[%emt 0:00:05]} 37. Rd8 {[%emt 0:00:21]} Ra7 {[%emt 0:01:25]} 38. h3 {[%emt 0:00:24]} h5 {[%emt 0:00:13]} 39. Kh2 {[%emt 0:01:26]} Ra2 {[%emt 0:00:16]} 40. e6 {[%emt 0:00:23]} Bxe6 {[%emt 0:00:32]} 41. Rxe6 {[%emt 0:00:17]} fxe6 {[%emt 0:00:08]} 42. Rxd7+ {[%emt 0:00:06]} Kf6 {[%emt 0:00:02]} 43. Bf3 {[%emt 0:00:29]} Rb2 {[%emt 0:00:06]} 44. Rd3 {[%emt 0:00:33]} Kf5 {[%emt 0:00:07]} 45. Kg3 {[%emt 0:01:48]} h4+ {[%emt 0:00:05]} 46. Kxh4 {[%emt 0:00:21]} Kxf4 {[%emt 0:00:02]} 47. Rd6 {[%emt 0:01:19]} e5 {[%emt 0:01:23]} 48. Rf6+ {[%emt 0:00:17]} Ke3 {[%emt 0:00:07]} 49. Rxb6 {[%emt 0:00:11]} Kd3 {[%emt 0:00:44]} 50. c5 {[%emt 0:00:16]} e4 {[%emt 0:00:11]} 51. Rd6+ {[%emt 0:00:02]} Ke3 {[%emt 0:00:19]} 52. Re6 {[%emt 0:00:10]} 1-0